Workbook

Sheet Pasiūlymas
A2: PIRKIMO SĄLYGŲ PRIEDAS "PASIŪLYMŲ FORMA"
A4: IŠORINĖ TARPLABORATORINĖ KONTROLĖ
A6: Kam: | B6: VšĮ LSMU Kauno ligoninė
A8: Data: | B8: 2022-03-02
A9: Nr.: | B9: KP-22-08
A10: Vieta: | B10: Vilnius
A12: Tiekėjo pavadinimas / Ūkio subjektų grupės nariai: | C12: UAB „LABORATORINĖ MEDICINA“
A13: Tiekėjo kodas (-ai): | C13: 124635920
A14: Tiekėjo adresas (-ai): | C14: M. Marcinkevičiaus g. 1-2, LT-08433 Vilnius
A15: Tiekėjo PVM mokėtojo kodas(-ai): | C15: LT100001092010
A16: Tiekėjo / Ūkio subjektų grupės atsakingo partnerio sąskaitos numeris, banko pavadinimas ir banko kodas (-ai): | C16: LT74 7044 0600 0131 4862, AB SEB bankas, B.k. 70440
A17: Asmens atsakingo už pasiūlymą vardas, pavardė: | C17: Direktoriaus pavaduotojas Andrejus Coj
A18: Asmens atsakingo už pasiūlymą telefono numeris, el. pašto adresas: | C18: tel. +370 640 40008, el. paštas: Laboratorine.medicina@gmail.com
A19: Tiekėjo / Ūkio subjektų grupės, laimėjimo atveju, pasirašančio sutartį asmens vardas, pavardė, pareigos: | C19: Direktorius Alvydas Preikšaitis
A20: Tiekėjo / Ūkio subjektų grupės, laimėjimo atveju, už sutarties vykdymą atsakingo asmens vardas, pavardė, telefono numeris, elektroninio pašto adresas: | C20: Direktoriaus pavaduotojas Andrejus Coj, tel. +370 640 40008, el. paštas: Laboratorine.medicina@gmail.com
A21: (1) Tiekėjo / Ūkio subjektų grupės narių, (2) ūkio subjektų, kurių pajėgumais remiamasi, ir (3) jei pašalinimo pagrindai taikomi visiems subtiekėjams - subtiekėjų, kolegialaus priežiūros organo (Stebėtojų tarybos) ir (ar) kolegialaus valdymo organo (Valdybos) narių sąrašas (jei sudaryta) ir (ar) asmuo, kuriam suteikti VPĮ 46 str. 2 d. 2 p. numatyti įgaliojimai
A23: Tiekėjo patvirtinimai:
A24: 1. Šiuo pasiūlymu pažymime, kad sutinkame su visomi pirkimo sąlygomis, nustatytomis:
A25: 1.1. viešojo pirkimo dokumentuose
A26: 1.2. kituose pirkimo dokumentuose (jų paaiškinimuose, papildymuose).
A27: 2. Patvirtiname, kad informacija ir duomenys, pateikti pasiūlyme, yra teisingi ir apima viską, ko reikia tinkamam sutarties įvykdymui
A28: 3. Patvirtiname, kad jei pasiūlyme nenurodyti kolegialaus priežiūros/valdymo organų nariai, šie organai juridiniuose asmenyse nėra sudaryti (taikoma, kai pirkimo dokumentuose nustatyti pašalinimo pagrindai).
A29: 4. Pasiūlymas galioja iki termino, nustatyto pirkimo dokumentuose.
A30: 5. Tais atvejais, kai pagal galiojančius teisės aktus tiekėjui nereikia mokėti PVM, jis nurodo priežastis, dėl kurių PVM nemoka:
A31: 6. Tiekėjas kainas pateikia, nurodydamas ne daugiau skaičių po kablelio, nei leidžiama pirkimo dokumentuose.
A32: 1. DALIS | B32: AUTOMATIZUOTAS KRAUJO TYRIMAS
A34: Tiekėjo pasiūlymas:
A35: Nr. | B35: Pavadinimas | C35: Kiekis | D35: Mato vienetas | E35: Kaina be PVM, Eur | F35: Suma be PVM, Eur
A36: 1. | B36: Automatizuotas kraujo tyrimas
A37: 1.1. | B37: Automatizuotas kraujo tyrimas 5 dalių leukocitų diferenciacijos hematologiniam analizatoriui | C37: 6 | D37: vnt. | E37: 80 | F37: =IF(ISBLANK(E37),"", PRODUCT(C37,E37)) -> 480
E38: Suma be PVM | F38: =IF(F37="","",SUM(F37:F37)) -> 480 | G38: =IF(F37="","Neužpildytos visos objektų kainos","") -> 
E39: PVM suma | F39: =F38*21% -> 100.8
E40: Suma su PVM | F40: =IF(ISBLANK(F39), "", SUM(F38:F39)) -> 580.8
A44: 2. DALIS | B44: MIKROSKOPINIS RETIKULIOCITŲ TYRIMAS
A46: Tiekėjo pasiūlymas:
A47: Nr. | B47: Pavadinimas | C47: Kiekis | D47: Mato vienetas | E47: Kaina be PVM, Eur | F47: Suma be PVM, Eur
A48: 2. | B48: Mikroskopinis retikuliocitų tyrimas
A49: 2.1. | B49: Mikroskopinis retikuliocitų tyrimas | C49: 6 | D49: vnt. | E49: 80 | F49: =IF(ISBLANK(E49),"", PRODUCT(C49,E49)) -> 480
E50: Suma be PVM | F50: =IF(F49="","",SUM(F49:F49)) -> 480 | G50: =IF(F49="","Neužpildytos visos objektų kainos","") -> 
E51: PVM suma | F51: =F50*21% -> 100.8
E52: Suma su PVM | F52: =IF(ISBLANK(F51), "", SUM(F50:F51)) -> 580.8
A56: 3. DALIS | B56: KRAUJO TEPINĖLIO CITOMORFOLOGINIS TYRIMAS
A58: Tiekėjo pasiūlymas:
A59: Nr. | B59: Pavadinimas | C59: Kiekis | D59: Mato vienetas | E59: Kaina be PVM, Eur | F59: Suma be PVM, Eur
A60: 3. | B60: Kraujo tepinėlio citomorfologinis tyrimas
A61: 3.1. | B61: Kraujo tepinėlio citomorfologinis tyrimas | C61: 6 | D61: vnt. | E61: 110 | F61: =IF(ISBLANK(E61),"", PRODUCT(C61,E61)) -> 660
E62: Suma be PVM | F62: =IF(F61="","",SUM(F61:F61)) -> 660 | G62: =IF(F61="","Neužpildytos visos objektų kainos","") -> 
E63: PVM suma | F63: =F62*21% -> 138.6
E64: Suma su PVM | F64: =IF(ISBLANK(F63), "", SUM(F62:F63)) -> 798.6
A68: 4. DALIS | B68: KRAUJO PARAZITŲ TYRIMAS TEPINĖLYJE
A70: Tiekėjo pasiūlymas:
A71: Nr. | B71: Pavadinimas | C71: Kiekis | D71: Mato vienetas | E71: Kaina be PVM, Eur | F71: Suma be PVM, Eur
A72: 4. | B72: Kraujo parazitų tyrimas tepinėlyje
A73: 4.1. | B73: Kraujo parazitų tyrimas tepinėlyje | C73: 4 | D73: vnt. | E73: 130 | F73: =IF(ISBLANK(E73),"", PRODUCT(C73,E73)) -> 520
E74: Suma be PVM | F74: =IF(F73="","",SUM(F73:F73)) -> 520 | G74: =IF(F73="","Neužpildytos visos objektų kainos","") -> 
E75: PVM suma | F75: =F74*21% -> 109.2
E76: Suma su PVM | F76: =IF(ISBLANK(F75), "", SUM(F74:F75)) -> 629.2
A80: 5. DALIS | B80: AUTOMATIZUOTAS JUOSTELINIS ŠLAPIMO TYRIMAS
A82: Tiekėjo pasiūlymas:
A83: Nr. | B83: Pavadinimas | C83: Kiekis | D83: Mato vienetas | E83: Kaina be PVM, Eur | F83: Suma be PVM, Eur
A84: 5. | B84: Automatizuotas juostelinis šlapimo tyrimas
A85: 5.1. | B85: Automatizuotas juostelinis šlapimo tyrimas | C85: 6 | D85: vnt. | E85: 80 | F85: =IF(ISBLANK(E85),"", PRODUCT(C85,E85)) -> 480
E86: Suma be PVM | F86: =IF(F85="","",SUM(F85:F85)) -> 480 | G86: =IF(F85="","Neužpildytos visos objektų kainos","") -> 
E87: PVM suma | F87: =F86*21% -> 100.8
E88: Suma su PVM | F88: =IF(ISBLANK(F87), "", SUM(F86:F87)) -> 580.8
A92: 6. DALIS | B92: ŠLAPIMO NUOSĖDŲ NATYVINIO TEPINĖLIO TYRIMAS
A94: Tiekėjo pasiūlymas:
A95: Nr. | B95: Pavadinimas | C95: Kiekis | D95: Mato vienetas | E95: Kaina be PVM, Eur | F95: Suma be PVM, Eur
A96: 6. | B96: Šlapimo nuosėdų natyvinio tepinėlio tyrimas
A97: 6.1. | B97: Šlapimo nuosėdų natyvinio tepinėlio tyrimas | C97: 6 | D97: vnt. | E97: 55 | F97: =IF(ISBLANK(E97),"", PRODUCT(C97,E97)) -> 330
E98: Suma be PVM | F98: =IF(F97="","",SUM(F97:F97)) -> 330 | G98: =IF(F97="","Neužpildytos visos objektų kainos","") -> 
E99: PVM suma | F99: =F98*21% -> 69.3
E100: Suma su PVM | F100: =IF(ISBLANK(F99), "", SUM(F98:F99)) -> 399.3
A104: 7. DALIS | B104: IŠORINĖ KOKYBĖS KONTROLĖ ŠLAPIMO NUOSĖDOMS
A106: Tiekėjo pasiūlymas:
A107: Nr. | B107: Pavadinimas | C107: Kiekis | D107: Mato vienetas | E107: Kaina be PVM, Eur | F107: Suma be PVM, Eur
A108: 7. | B108: Išorinė kokybės kontrolė šlapimo nuosėdoms
A109: 7.1. | B109: Išorinė kokybės kontrolė šlapimo nuosėdoms | C109: 6 | D109: vnt. | E109: 120 | F109: =IF(ISBLANK(E109),"", PRODUCT(C109,E109)) -> 720
E110: Suma be PVM | F110: =IF(F109="","",SUM(F109:F109)) -> 720 | G110: =IF(F109="","Neužpildytos visos objektų kainos","") -> 
E111: PVM suma | F111: =F110*21% -> 151.2
E112: Suma su PVM | F112: =IF(ISBLANK(F111), "", SUM(F110:F111)) -> 871.2
A116: 8. DALIS | B116: BIOCHEMINIAI TYRIMAI
A118: Tiekėjo pasiūlymas:
A119: Nr. | B119: Pavadinimas | C119: Kiekis | D119: Mato vienetas | E119: Kaina be PVM, Eur | F119: Suma be PVM, Eur
A120: 8. | B120: Biocheminiai tyrimai
A121: 8.1. | B121: Kalis, natris, chloras, gliukozė, šlapalas, bendras bilirubinas, tiesioginis bilirubinas, CRB | C121: 6 | D121: vnt. | E121: 205 | F121: =IF(ISBLANK(E121),"", PRODUCT(C121,E121)) -> 1230
E122: Suma be PVM | F122: =IF(F121="","",SUM(F121:F121)) -> 1230 | G122: =IF(F121="","Neužpildytos visos objektų kainos","") -> 
E123: PVM suma | F123: =F122*21% -> 258.3
E124: Suma su PVM | F124: =IF(ISBLANK(F123), "", SUM(F122:F123)) -> 1488.3
A128: 9. DALIS | B128: BIOCHEMINIAI TYRIMAI
A130: Tiekėjo pasiūlymas:
A131: Nr. | B131: Pavadinimas | C131: Kiekis | D131: Mato vienetas | E131: Kaina be PVM, Eur | F131: Suma be PVM, Eur
A132: 9. | B132: Biocheminiai tyrimai
A133: 9.1. | B133: Pro-BNP, troponinas I, CK-MB | C133: 6 | D133: vnt. | E133: 200 | F133: =IF(ISBLANK(E133),"", PRODUCT(C133,E133)) -> 1200
E134: Suma be PVM | F134: =IF(F133="","",SUM(F133:F133)) -> 1200 | G134: =IF(F133="","Neužpildytos visos objektų kainos","") -> 
E135: PVM suma | F135: =F134*21% -> 252
E136: Suma su PVM | F136: =IF(ISBLANK(F135), "", SUM(F134:F135)) -> 1452
A140: 10. DALIS | B140: BIOCHEMINIAI TYRIMAI
A142: Tiekėjo pasiūlymas:
A143: Nr. | B143: Pavadinimas | C143: Kiekis | D143: Mato vienetas | E143: Kaina be PVM, Eur | F143: Suma be PVM, Eur
A144: 10. | B144: Biocheminiai tyrimai
A145: 10.1. | B145: Bendras baltymas, kreatininas, šlapimo rūgštis, kalcis, magnis, geležis, cholesterolis ir jo frakcijos, trigliceridai, AST, ALT, šarminė fosfotazė | C145: 6 | D145: vnt. | E145: 60 | F145: =IF(ISBLANK(E145),"", PRODUCT(C145,E145)) -> 360
E146: Suma be PVM | F146: =IF(F145="","",SUM(F145:F145)) -> 360 | G146: =IF(F145="","Neužpildytos visos objektų kainos","") -> 
E147: PVM suma | F147: =F146*21% -> 75.6
E148: Suma su PVM | F148: =IF(ISBLANK(F147), "", SUM(F146:F147)) -> 435.6
A152: 11. DALIS | B152: BIOCHEMINIAI TYRIMAI
A154: Tiekėjo pasiūlymas:
A155: Nr. | B155: Pavadinimas | C155: Kiekis | D155: Mato vienetas | E155: Kaina be PVM, Eur | F155: Suma be PVM, Eur
A156: 11. | B156: Biocheminiai tyrimai
A157: 11.1. | B157: Kraujo dujos ir pH | C157: 6 | D157: vnt. | E157: 80 | F157: =IF(ISBLANK(E157),"", PRODUCT(C157,E157)) -> 480
E158: Suma be PVM | F158: =IF(F157="","",SUM(F157:F157)) -> 480 | G158: =IF(F157="","Neužpildytos visos objektų kainos","") -> 
E159: PVM suma | F159: =F158*21% -> 100.8
E160: Suma su PVM | F160: =IF(ISBLANK(F159), "", SUM(F158:F159)) -> 580.8
A164: 12. DALIS | B164: BIOCHEMINIAI TYRIMAI
A166: Tiekėjo pasiūlymas:
A167: Nr. | B167: Pavadinimas | C167: Kiekis | D167: Mato vienetas | E167: Kaina be PVM, Eur | F167: Suma be PVM, Eur
A168: 12. | B168: Biocheminiai tyrimai
A169: 12.1. | B169: Alfa amilazė, pankreatinė amilazė, LDH, laktatas, fosforas, albuminas, GGT, feritinas, PSA, amoniakas, prokalcitoninas, vitaminas D. | C169: 6 | D169: vnt. | E169: 380 | F169: =IF(ISBLANK(E169),"", PRODUCT(C169,E169)) -> 2280
E170: Suma be PVM | F170: =IF(F169="","",SUM(F169:F169)) -> 2280 | G170: =IF(F169="","Neužpildytos visos objektų kainos","") -> 
E171: PVM suma | F171: =F170*21% -> 478.8
E172: Suma su PVM | F172: =IF(ISBLANK(F171), "", SUM(F170:F171)) -> 2758.8
A176: 13. DALIS | B176: BIOCHEMINIAI TYRIMAI
A178: Tiekėjo pasiūlymas:
A179: Nr. | B179: Pavadinimas | C179: Kiekis | D179: Mato vienetas | E179: Kaina be PVM, Eur | F179: Suma be PVM, Eur
A180: 13. | B180: Biocheminiai tyrimai
A181: 13.1. | B181: Vankomicinas | C181: 4 | D181: vnt. | E181: 125 | F181: =IF(ISBLANK(E181),"", PRODUCT(C181,E181)) -> 500
E182: Suma be PVM | F182: =IF(F181="","",SUM(F181:F181)) -> 500 | G182: =IF(F181="","Neužpildytos visos objektų kainos","") -> 
E183: PVM suma | F183: =F182*21% -> 105
E184: Suma su PVM | F184: =IF(ISBLANK(F183), "", SUM(F182:F183)) -> 605
A188: 14. DALIS | B188: KREŠĖJIMO TYRIMAI
A190: Tiekėjo pasiūlymas:
A191: Nr. | B191: Pavadinimas | C191: Kiekis | D191: Mato vienetas | E191: Kaina be PVM, Eur | F191: Suma be PVM, Eur
A192: 14. | B192: Krešėjimo tyrimai
A193: 14.1. | B193: Protrombino laikas (SPA), DATL, fibrinogenas, D-dimerai | C193: 6 | D193: vnt. | E193: 205 | F193: =IF(ISBLANK(E193),"", PRODUCT(C193,E193)) -> 1230
E194: Suma be PVM | F194: =IF(F193="","",SUM(F193:F193)) -> 1230 | G194: =IF(F193="","Neužpildytos visos objektų kainos","") -> 
E195: PVM suma | F195: =F194*21% -> 258.3
E196: Suma su PVM | F196: =IF(ISBLANK(F195), "", SUM(F194:F195)) -> 1488.3
A200: 15. DALIS | B200: MOLEKULINIAI TYRIMAI
A202: Tiekėjo pasiūlymas:
A203: Nr. | B203: Pavadinimas | C203: Kiekis | D203: Mato vienetas | E203: Kaina be PVM, Eur | F203: Suma be PVM, Eur
A204: 15. | B204: Molekuliniai tyrimai
A205: 15.1. | B205: Anti-SARS-CoV-2 IgG | C205: 4 | D205: vnt. | E205: 190 | F205: =IF(ISBLANK(E205),"", PRODUCT(C205,E205)) -> 760
E206: Suma be PVM | F206: =IF(F205="","",SUM(F205:F205)) -> 760 | G206: =IF(F205="","Neužpildytos visos objektų kainos","") -> 
E207: PVM suma | F207: =F206*21% -> 159.6
E208: Suma su PVM | F208: =IF(ISBLANK(F207), "", SUM(F206:F207)) -> 919.6
A212: 16. DALIS | B212: MIKROBIOLOGINIAI TYRIMAI
A214: Tiekėjo pasiūlymas:
A215: Nr. | B215: Pavadinimas | C215: Kiekis | D215: Mato vienetas | E215: Kaina be PVM, Eur | F215: Suma be PVM, Eur
A216: 16. | B216: Mikrobiologiniai tyrimai
A217: 16.1. | B217: Bakterijų kultūrų identifikavimas ir jautrumo nustatymas | C217: 4 | D217: vnt. | E217: 145 | F217: =IF(ISBLANK(E217),"", PRODUCT(C217,E217)) -> 580
E218: Suma be PVM | F218: =IF(F217="","",SUM(F217:F217)) -> 580 | G218: =IF(F217="","Neužpildytos visos objektų kainos","") -> 
E219: PVM suma | F219: =F218*21% -> 121.8
E220: Suma su PVM | F220: =IF(ISBLANK(F219), "", SUM(F218:F219)) -> 701.8
A224: 17. DALIS | B224: MIKROBIOLOGINIAI TYRIMAI
A226: Tiekėjo pasiūlymas:
A227: Nr. | B227: Pavadinimas | C227: Kiekis | D227: Mato vienetas | E227: Kaina be PVM, Eur | F227: Suma be PVM, Eur
A228: 17. | B228: Mikrobiologiniai tyrimai
A229: 17.1. | B229: Morfologinis Gramo būdu dažytų tepinėlių tyrimas | C229: 4 | D229: vnt. | E229: 100 | F229: =IF(ISBLANK(E229),"", PRODUCT(C229,E229)) -> 400
E230: Suma be PVM | F230: =IF(F229="","",SUM(F229:F229)) -> 400 | G230: =IF(F229="","Neužpildytos visos objektų kainos","") -> 
E231: PVM suma | F231: =F230*21% -> 84
E232: Suma su PVM | F232: =IF(ISBLANK(F231), "", SUM(F230:F231)) -> 484
A236: 18. DALIS | B236: INFEKCIJŲ SEROLOGIJA
A238: Tiekėjo pasiūlymas:
A239: Nr. | B239: Pavadinimas | C239: Kiekis | D239: Mato vienetas | E239: Kaina be PVM, Eur | F239: Suma be PVM, Eur
A240: 18. | B240: Infekcijų serologija
A241: 18.1. | B241: Citomegalo viruso IgM ir IgG | C241: 4 | D241: vnt. | E241: 120 | F241: =IF(ISBLANK(E241),"", PRODUCT(C241,E241)) -> 480
A242: 18.2. | B242: Anti-HSV ½ IgG, Anti-HSV ½ IgM | C242: 4 | D242: vnt. | E242: 120 | F242: 480
A243: 18.3. | B243: Varicella Zoster IgG, IgM | C243: 4 | D243: vnt. | E243: 105 | F243: 420
A244: 18.4. | B244: Išorinė kokybės kontrolė Hapatito A viruso (HAV) IgM | C244: 4 | D244: vnt. | E244: 100 | F244: 400
A245: 18.5. | B245: Hepatito B viruso (HBV) HBsAg, anti-HBcor anti-HBc-IgM, HBEAg, anti-HBe, anti-HBs | C245: 4 | D245: vnt. | E245: 220 | F245: 880
A246: 18.6. | B246: Hepatito C (HCV) antikūnai | C246: 4 | D246: vnt. | E246: 0 | F246: 0
A247: 18.7. | B247: ŽIV-1/ŽIV-2 antikūnai | C247: 4 | D247: vnt. | E247: 145 | F247: 580
A248: 18.8. | B248: T.gondii IgM, IgG | C248: 4 | D248: vnt. | E248: 90 | F248: 360
A249: 18.9. | B249: Treponema pallidum IgM-IgG | C249: 4 | D249: vnt. | E249: 110 | F249: 440
A250: 18.10. | B250: Anti-EBV IgM, Anti-EBV IgG | C250: 4 | D250: vnt. | E250: 90 | F250: 360
A251: 18.11. | B251: Mycoplasma pneumoniae IgM | C251: 4 | D251: vnt. | E251: 105 | F251: 420
A252: 18.12. | B252: Clamydia pneumoniae IgM | C252: 4 | D252: vnt. | E252: 100 | F252: 400
A253: 18.13. | B253: Boreliozės (Laimo ligos) IgM, IgG | C253: 4 | D253: vnt. | E253: 105 | F253: 420
A254: 18.14. | B254: H. pylori IgG | C254: 4 | D254: vnt. | E254: 90 | F254: 360
A255: 18.15. | B255: Erkinio encefalito viruso IgG ir IgM | C255: 4 | D255: vnt. | E255: 120 | F255: 480
E256: Suma be PVM | F256: =IF((SUMPRODUCT(--(F241:F255=""))>0), "", SUM(F241:F255)) -> 6480 | G256: =IF((SUMPRODUCT(--(F241:F255=""))>0), "Neužpildytos visų objektų kainos", "") -> 
E257: PVM suma | F257: =F256*21% -> 1360.8
E258: Suma su PVM | F258: =IF(ISBLANK(F257), "", SUM(F256:F257)) -> 7840.8

Sheet Pastaba
A1: Pastaba:
B2: 18 pirkimo dalis. 18.6. pirkimo punktas. Hepatito C (HCV) antikūnai įeina į 18.5 pirkimo dalies programą, Labquality, kat. kodas 5095 (anti-HBs, 5093)

Sheet Subtiekėjai ir priedai
A2: Ūkio subjektai (įskaitant kvazisubtiekėjus - fiziniai asmenys, kuriuos ketinama įdarbinti pirkimo laimėjimo atveju), kurių pajėgumais tiekėjas remiasi, kad atitiktų keliamus kvalifikacijos reikalavimus:
A5: Pavadinimas* | C5: Kodas, adresas | F5: Perduodami įsipareigojimai | I5: Perduodamų įsipareigojimų dalis nuo visos pirkimo sutarties (Eur arba %) | K5: Kval. Reikalavimo Nr.
A17: Subtiekėjams / subteikėjams / subrangovams numatomos perduoti veiklos (privaloma nurodyti) ir šių ūkio subjektų pavadinimai (jei žinomi):
A19: Pavadinimas | C19: Kodas, adresas | F19: Perduodama veikla* | I19: Perduodamos veiklos dalis nuo visos pirkimo sutarties (Eur arba %)
A33: Kartu su pasiūlymu pateikiami šie dokumentai:
A35: Nr. | B35: Dokumento pavadinimas | H35: Dokumentas yra konfidencialus? Taip/Ne
A36: 1 | B36: Jungtinės veiklos kopija (jei taikoma)
A37: 2 | B37: Subtiekimo sutartis, ketinimų protokolas, preliminarios sutartys ar kiti dokumentai, patvirtinantys, kad laimėjus pirkimą tiekėjui bus prieinami kitų ūkio subjektų ištekliai (jei pasitelkiami kvalifikacijos atitikimui)
A48: Pasiūlyme nurodyta Prekės kaina, išskyrus jos sudedamąsias dalis, subtiekėjai, taip pat kita informacija, kuri teisės aktų nustatyta tvarka turi būti skelbiama arba kitokiu būdu viešai prieinama visuomenei, nėra laikoma konfidencialia informacija. Konfidencialią informaciją sudaro, visų pirma, komercinė (gamybinė) paslaptis ir konfidencialieji pasiūlymų aspektai. Informacija, kurią viešai skelbti įpareigoja Lietuvos Respublikos įstatymai, negali būti tiekėjo nurodoma kaip konfidenciali, todėl, tiekėjui nurodžius tokią informaciją kaip konfidencialią, perkančioji organizacija turi teisę ją skelbti. Jei tiekėjas nenurodo konfidencialios informacijos, laikoma, kad konfidencialios informacijos tiekėjo pasiūlyme nėra. Vadovaujantis Informacijos viešinimo Centrinėje viešųjų pirkimų informacinėje sistemoje tvarkos aprašu, patvirtintu Viešųjų pirkimų tarnybos direktoriaus 2017 m. birželio 19 d. įsakymu Nr. 1S-91 „Dėl Informacijos viešinimo Centrinėje viešųjų pirkimų informacinėje sistemoje tvarkos aprašo patvirtinimo“, perkančioji organizacija laimėjusio dalyvio pasiūlymą, išskyrus informaciją, kurią tiekėjas nurodė kaip konfidencialią, paskelbs CVP IS.
A51: Tiekėjo arba jo įgalioto asmens pareigų pavadinimas:
A53: Pasirašančio asmens vardas ir pavardė:
A100: 6440 2022-02-22 09:18:24
